fUST/lending_fUST_20240212
["ID","MTS","AMOUNT","RATE_DAILY","PERIOD"]
[313774487,1707712241418,-500.0,0.00020269,2]
[313774488,1707712241430,-500.16552471,0.00020269,2]
[313774489,1707712241441,-500.0,0.00020269,2]
[313774490,1707712241452,-500.0,0.00020269,2]
[313774491,1707712241464,-500.0,0.00020269,2]
[313774492,1707712241475,-500.0,0.00020269,2]
[313774493,1707712241485,-500.0,0.00020269,2]
[313774494,1707712241496,-500.0,0.00020269,2]
[313774495,1707712241507,-507.31792361,0.00020269,2]
[313774496,1707712241519,-500.0,0.00020269,2]
[313774497,1707712241530,-599.44,0.0002027,2]
[313774498,1707712241541,-1394.12926945,0.00020384,2]
[313774499,1707712241550,-621.45133321,0.00020475,2]
[313774500,1707712241560,-2438.27063338,0.00020482,2]
[313774501,1707712241570,-5000.0,0.00020482,2]
[313774502,1707712241583,-3815.38907554,0.00020482,2]
[313774503,1707712241594,-5000.0,0.00020484,2]
[313774504,1707712241605,-599.44,0.00020484,2]
[313774505,1707712241616,-599.44,0.00020485,2]
[313774506,1707712241628,-599.44,0.00020485,2]
[313774507,1707712241639,-6963.08189729,0.00020486,2]
[313774508,1707712241650,-151.0,0.00020503,2]
[313774509,1707712241661,-500.0,0.00020539,2]
[313774510,1707712241672,-235.71352018,0.00020539,2]
[313774511,1707712241684,-4386.28,0.00020539,2]
[313774512,1707712241695,-2666.35,0.00020539,2]
[313774513,1707712241706,-7544.75,0.00020539,2]
[313774514,1707712241717,-728.63,0.00020539,2]
[313774515,1707712241730,-500.0,0.00020539,2]
[313774516,1707712241741,-576.72,0.00020539,2]
[313774517,1707712241753,-500.0,0.00020539,2]
[313774518,1707712241764,-500.0,0.00020539,2]
[313774519,1707712241776,-500.0,0.0002054,2]
[313774520,1707712241788,-500.0,0.0002054,2]
[313774521,1707712241799,-210.44,0.0002054,2]
[313774522,1707712241809,-500.0,0.0002054,2]
[313774523,1707712241818,-500.0,0.0002054,2]
[313774524,1707712241828,-500.0,0.0002054,2]
[313774525,1707712241838,-621.08,0.0002054,2]
[313774526,1707712241849,-500.0,0.0002054,2]
[313774527,1707712241860,-222.36,0.0002054,2]
[313774528,1707712241871,-391.26,0.0002054,2]
[313774529,1707712241882,-359.74,0.0002054,2]
[313774530,1707712241892,-729.81,0.0002054,2]
[313774531,1707712241902,-500.0,0.0002054,2]
[313774532,1707712241913,-500.0,0.0002054,2]
[313774533,1707712241924,-500.0,0.0002054,2]
[313774534,1707712241936,-4140.64,0.0002054,2]
[313774535,1707712241946,-1947.95,0.0002054,2]
[313774536,1707712241956,-3450.21,0.0002054,2]
[313774537,1707712241966,-3068.58,0.0002054,2]
[313774538,1707712241975,-290.58,0.0002054,2]
[313774539,1707712241985,-2685.08,0.0002054,2]
[313774540,1707712241996,-532.89,0.0002054,2]
[313774541,1707712242008,-500.0,0.0002054,2]
[313774542,1707712242018,-500.0,0.00020542,2]
[313774544,1707712242028,-312.02,0.00020542,2]
[313774546,1707712242038,-500.0,0.00020542,2]
[313774548,1707712242049,-623.92,0.00020542,2]
[313774550,1707712242059,-212.28,0.00020542,2]
[313774552,1707712242069,-724.74,0.00020542,2]
[313774554,1707712242080,-599.44,0.00020542,2]
[313774557,1707712242090,-749.39,0.00020542,2]
[313774559,1707712242100,-500.0,0.00020542,2]
[313774561,1707712242112,-631.65,0.00020542,2]
[313774563,1707712242122,-500.0,0.00020543,2]
[313774565,1707712242132,-500.0,0.00020543,2]
[313774567,1707712242143,-500.0,0.00020543,2]
[313774569,1707712242153,-500.0,0.00020543,2]
[313774571,1707712242163,-375.96,0.00020543,2]
[313774574,1707712242173,-599.44,0.00020543,2]
[313774576,1707712242183,-599.44,0.00020545,2]
[313774578,1707712242193,-500.0,0.00020684,2]
[313774580,1707712242203,-8683.55680084,0.000208,2]
[313774582,1707712242214,-500.0,0.00020813,2]
[313774584,1707712242225,-4386.28,0.00020813,2]
[313774586,1707712242235,-2666.35,0.00020813,2]
[313774587,1707712242245,-7544.75,0.00020813,2]
[313774588,1707712242255,-728.63,0.00020813,2]
[313774589,1707712242265,-186.34,0.00020813,2]
[313774590,1707712242276,-500.0,0.00020813,2]
[313774591,1707712242286,-500.0,0.00020813,2]
[313774592,1707712242296,-500.0,0.00020814,2]
[313774593,1707712242306,-647.16429861,0.00020814,2]
[313774594,1707712242316,-500.0,0.00020814,2]
[313774595,1707712242327,-621.08,0.00020814,2]
[313774596,1707712242337,-729.81,0.00020814,2]
[313774597,1707712242348,-500.0,0.00020814,2]
[313774598,1707712242358,-500.0,0.00020814,2]
[313774599,1707712242368,-500.0,0.00020814,2]
[313774600,1707712242378,-4140.64,0.00020814,2]
[313774601,1707712242388,-1947.95,0.00020814,2]
[313774602,1707712242399,-3450.21,0.00020814,2]
[313774603,1707712242409,-3068.58,0.00020814,2]
[313774604,1707712242419,-2685.08,0.00020814,2]
[313774605,1707712242430,-532.89,0.00020814,2]
[313774606,1707712242441,-500.0,0.00020814,2]
[313774607,1707712242451,-764.34657805,0.00020815,2]
[313774608,1707712242461,-500.0,0.00020816,2]
[313774609,1707712242471,-500.0,0.00020816,2]
[313774610,1707712242482,-724.74,0.00020816,2]
[313774611,1707712242491,-599.44,0.00020816,2]
[313774612,1707712242502,-749.39,0.00020816,2]
[313774613,1707712242512,-500.0,0.00020816,2]
[313774614,1707712242523,-631.65,0.00020816,2]
[313774616,1707712242533,-505.96345207,0.00020817,2]
[313774617,1707712242543,-503.33303702,0.00020817,2]
[313774618,1707712242554,-500.0,0.00020817,2]
[313774619,1707712242564,-599.44,0.00020818,2]
[313774621,1707712242693,-262.65208085,0.00020821,2]
[313774622,1707712242717,-599.44,0.00020821,2]
[313774623,1707712242727,-599.44,0.00020821,2]
[313774624,1707712242736,-599.44,0.00020821,2]
[313774625,1707712242745,-599.44,0.00020821,2]
[313774626,1707712242755,-599.53292078,0.00020821,2]
[313774627,1707712242764,-500.0,0.00020822,2]
[313774628,1707712242773,-594.93104744,0.00020822,2]
[313774629,1707712242784,-396.66743223,0.00020822,2]
[313774630,1707712242793,-500.0,0.00020822,2]
[313774631,1707712242802,-500.0,0.00020822,2]
[313774632,1707712242811,-500.0,0.00020822,2]
[313774633,1707712242820,-500.0,0.00020822,2]
[313774634,1707712242830,-500.0,0.00020822,2]
[313774635,1707712242839,-500.0,0.00020822,2]
[313774636,1707712242848,-572.03770792,0.00020822,2]
[313774637,1707712242858,-500.0,0.00020822,2]
[313774638,1707712242867,-500.0,0.00020822,2]
[313774639,1707712242876,-500.0,0.00020822,2]
[313774640,1707712242885,-500.0,0.00020822,2]
[313774641,1707712242893,-462.57701647,0.00020822,2]
[313774642,1707712242903,-500.0,0.00020822,2]
[313774643,1707712242912,-500.0,0.00020822,2]
[313774644,1707712242921,-500.0,0.00020822,2]
[313774645,1707712242930,-500.0,0.00020822,2]
[313774646,1707712242940,-500.0,0.00020822,2]
[313774647,1707712242949,-500.0,0.00020822,2]
[313774648,1707712242958,-500.0,0.00020822,2]
[313774649,1707712242967,-500.0,0.00020822,2]
[313774650,1707712242977,-500.0,0.00020822,2]
[313774651,1707712242986,-500.0,0.00020822,2]
[313774652,1707712242997,-500.0,0.00020822,2]
[313774653,1707712243006,-500.0,0.00020822,2]
[313774654,1707712243015,-500.0,0.00020822,2]
[313774655,1707712243024,-500.0,0.00020822,2]
[313774656,1707712243034,-500.0,0.00020822,2]
[313774657,1707712243043,-237.2647225,0.00020822,2]
[313774658,1707712243052,-500.0,0.00020822,2]
[313774659,1707712243061,-281.63351248,0.00020822,2]
[313774660,1707712243070,-500.0,0.00020822,2]
[313774661,1707712243081,-500.0,0.00020822,2]
[313774662,1707712243090,-500.0,0.00020822,2]
[313774663,1707712243099,-500.0,0.00020822,2]
[313774664,1707712243108,-192.46328076,0.00020822,2]
[313774665,1707712243117,-500.0,0.00020822,2]
[313774666,1707712243126,-500.0,0.00020822,2]
[313774667,1707712243135,-500.0,0.00020822,2]
[313774668,1707712243144,-500.0,0.00020822,2]
[313774669,1707712243153,-500.0,0.00020822,2]
[313774670,1707712243162,-500.0,0.00020822,2]
[313774671,1707712243172,-500.0,0.00020822,2]
[313774674,1707712243182,-500.0,0.00020822,2]
[313774676,1707712243190,-500.0,0.00020822,2]
[313774678,1707712243199,-500.0,0.00020822,2]
[313774680,1707712243208,-500.0,0.00020822,2]
[313774681,1707712243217,-500.0,0.00020822,2]
[313774684,1707712243227,-500.0,0.00020822,2]
[313774688,1707712243236,-500.0,0.00020822,2]
[313774690,1707712243245,-500.0,0.00020822,2]
[313774693,1707712243253,-500.0,0.00020822,2]
[313774696,1707712243263,-500.0,0.00020822,2]
[313774698,1707712243271,-500.0,0.00020822,2]
[313774700,1707712243280,-500.0,0.00020822,2]
[313774702,1707712243290,-500.0,0.00020822,2]
[313774703,1707712243299,-500.0,0.00020822,2]
[313774704,1707712243307,-500.0,0.00020822,2]
[313774705,1707712243317,-500.0,0.00020822,2]
[313774706,1707712243326,-500.0,0.00020822,2]
[313774707,1707712243335,-500.0,0.00020822,2]
[313774708,1707712243344,-500.0,0.00020822,2]
[313774709,1707712243353,-500.0,0.00020822,2]
[313774710,1707712243362,-500.0,0.00020822,2]
[313774711,1707712243371,-500.0,0.00020822,2]
[313774712,1707712243380,-500.0,0.00020822,2]
[313774713,1707712243389,-500.0,0.00020822,2]
[313774715,1707712243399,-500.0,0.00020822,2]
[313774716,1707712243408,-500.0,0.00020822,2]
[313774718,1707712243417,-500.0,0.00020822,2]
[313774719,1707712243426,-650.0,0.00020822,2]
[313774720,1707712243437,-500.0,0.00020822,2]
[313774722,1707712243446,-500.0,0.00020822,2]
[313774723,1707712243455,-500.0,0.00020822,2]
[313774724,1707712243464,-500.0,0.00020822,2]
[313774726,1707712243476,-500.0,0.00020822,2]
[313774728,1707712243485,-500.0,0.00020822,2]
[313774729,1707712243494,-500.0,0.00020822,2]
[313774730,1707712243503,-500.0,0.00020822,2]
[313774731,1707712243512,-200.0,0.0002099,2]
[313774732,1707712243521,-151.0,0.00021013,2]
[313774733,1707712243530,-500.0,0.00021087,2]
[313774734,1707712243541,-4386.28,0.00021087,2]
[313774735,1707712243550,-2666.35,0.00021087,2]
[313774736,1707712243558,-7544.75,0.00021087,2]
[313774738,1707712243568,-728.63,0.00021087,2]
[313774739,1707712243577,-500.0,0.00021087,2]
[313774740,1707712243586,-500.0,0.00021087,2]
[313774741,1707712243595,-500.0,0.00021088,2]
[313774742,1707712243604,-500.0,0.00021088,2]
[313774743,1707712243614,-621.08,0.00021088,2]
[313774744,1707712243623,-729.81,0.00021088,2]
[313774745,1707712243632,-500.0,0.00021088,2]
[313774746,1707712243642,-500.0,0.00021088,2]
[313774747,1707712243652,-500.0,0.00021088,2]
[313774748,1707712243661,-4140.64,0.00021088,2]
[313774749,1707712243670,-1947.95,0.00021088,2]
[313774750,1707712243679,-3450.21,0.00021088,2]
[313774751,1707712243688,-3068.58,0.00021088,2]
[313774752,1707712243697,-2685.08,0.00021088,2]
[313774753,1707712243707,-532.89,0.00021088,2]
[313774754,1707712243716,-500.0,0.00021088,2]
[313774755,1707712243726,-500.0,0.0002109,2]
[313774756,1707712243735,-500.0,0.0002109,2]
[313774757,1707712243744,-724.74,0.0002109,2]
[313774758,1707712243754,-749.39,0.0002109,2]
[313774759,1707712243764,-500.0,0.0002109,2]
[313774760,1707712243774,-631.65,0.0002109,2]
[313774761,1707712243783,-500.0,0.00021091,2]
[313774762,1707712243792,-1000.0,0.00021266,2]
[313774763,1707712243802,-500.0,0.00021361,2]
[313774764,1707712243812,-4386.28,0.00021361,2]
[313774765,1707712243822,-2666.35,0.00021361,2]
[313774766,1707712243831,-7544.75,0.00021361,2]
[313774767,1707712243841,-728.63,0.00021361,2]
[313774768,1707712243851,-500.0,0.00021361,2]
[313774769,1707712243860,-500.0,0.00021361,2]
[313774770,1707712243870,-500.0,0.00021362,2]
[313774771,1707712243879,-500.0,0.00021362,2]
[313774772,1707712243889,-621.08,0.00021362,2]
[313774773,1707712243898,-729.81,0.00021362,2]
[313774774,1707712243907,-500.0,0.00021362,2]
[313774775,1707712243917,-500.0,0.00021362,2]
[313774776,1707712243927,-500.0,0.00021362,2]
[313774777,1707712243936,-4140.64,0.00021362,2]
[313774778,1707712243945,-1947.95,0.00021362,2]
[313774779,1707712243955,-3450.21,0.00021362,2]
[313774780,1707712243965,-3068.58,0.00021362,2]
[313774781,1707712243974,-2685.08,0.00021362,2]
[313774782,1707712243983,-532.89,0.00021362,2]
[313774783,1707712243993,-500.0,0.00021362,2]
[313774784,1707712244004,-289.98079516,0.00021362,2]
[313774785,1707712244014,-500.0,0.00021362,2]
[313774786,1707712244023,-572.21127027,0.00021362,2]
[313774787,1707712244032,-222.90456049,0.00021362,2]
[313774788,1707712244042,-500.0,0.00021362,2]
[313774789,1707712244052,-500.0,0.00021362,2]
[313774790,1707712244062,-572.21127027,0.00021362,2]
[313774791,1707712244070,-202.52192559,0.00021362,2]
[313774792,1707712244080,-572.21127027,0.00021362,2]
[313774793,1707712244089,-500.0,0.00021362,2]
[313774794,1707712244098,-572.21127027,0.00021362,2]
[313774795,1707712244108,-440.0,0.00021362,2]
[313774796,1707712244116,-572.21127027,0.00021362,2]
[313774797,1707712244125,-500.0,0.00021362,2]
[313774798,1707712244135,-500.0,0.00021362,2]
[313774799,1707712244144,-572.21127027,0.00021362,2]
[313774800,1707712244154,-500.0,0.00021362,2]
[313774801,1707712244163,-572.21127027,0.00021362,2]
[313774802,1707712244172,-572.21127027,0.00021362,2]
[313774803,1707712244182,-421.67915598,0.00021362,2]
[313774804,1707712244191,-500.0,0.00021362,2]
[313774805,1707712244200,-572.21127027,0.00021362,2]
[313774806,1707712244210,-500.0,0.00021362,2]
[313774807,1707712244219,-572.21127027,0.00021362,2]
[313774808,1707712244228,-572.21127027,0.00021362,2]
[313774809,1707712244237,-572.21127027,0.00021362,2]
[313774810,1707712244246,-635.26377649,0.00021362,2]
[313774811,1707712244255,-500.0,0.00021362,2]
[313774812,1707712244264,-500.0,0.00021362,2]
[313774813,1707712244273,-500.0,0.00021362,2]
[313774814,1707712244282,-572.21127027,0.00021362,2]
[313774815,1707712244292,-572.21127027,0.00021362,2]
[313774816,1707712244301,-572.21127027,0.00021362,2]
[313774817,1707712244311,-500.0,0.00021362,2]
[313774818,1707712244320,-572.21127027,0.00021362,2]
[313774819,1707712244329,-572.21127027,0.00021362,2]
[313774820,1707712244338,-572.21127027,0.00021362,2]
[313774821,1707712244347,-500.0,0.00021362,2]
[313774822,1707712244357,-572.21127027,0.00021362,2]
[313774823,1707712244366,-572.21127027,0.00021362,2]
[313774824,1707712244375,-572.21127027,0.00021362,2]
[313774825,1707712244384,-500.0,0.00021362,2]
[313774826,1707712244393,-572.21127027,0.00021362,2]
[313774827,1707712244402,-500.0,0.00021362,2]
[313774828,1707712244411,-572.21127027,0.00021362,2]
[313774829,1707712244420,-572.21127027,0.00021362,2]
[313774830,1707712244430,-572.21127027,0.00021362,2]
[313774831,1707712244439,-500.0,0.00021364,2]
[313774832,1707712244449,-547.41913286,0.00021364,2]
[313774833,1707712244458,-724.74,0.00021364,2]
[313774834,1707712244467,-749.39,0.00021364,2]
[313774835,1707712244476,-500.0,0.00021364,2]
[313774836,1707712244487,-631.65,0.00021364,2]
[313774837,1707712244496,-500.0,0.00021365,2]
[313774838,1707712244505,-380.20215738,0.00021369,2]
[313774839,1707712244515,-151.0,0.00021524,2]
[313774840,1707712244524,-17517.15199319,0.00021633,2]
[313774841,1707712244613,-1123.52549523,0.00021633,2]
[313774842,1707712244683,-5126.76711246,0.00019983,3]
[313774844,1707712246686,-1604.00288754,0.00019983,3]
[313774845,1707712246696,-139.91391254,0.00021633,2]
[313774846,1707712246707,-11453.57406276,0.00021633,2]
[313775130,1707713431861,-258.05587891,0.00018786,2]
[313775131,1707713431870,-586.0552272,0.00018787,2]
[313775132,1707713431879,-188.25534635,0.00019223,2]
[313775369,1707713438006,-1137.65515957,0.00019223,2]
[313775371,1707713438016,-74.90043033,0.00019225,3]
[313775377,1707713438061,-79.97566879,0.00019225,3]
[313775379,1707713438071,-311.75518224,0.00019262,2]
[313775381,1707713438080,-543.55,0.0001999,2]
[313775382,1707713438089,-562.04,0.0001999,2]
[313775384,1707713438099,-398.38202965,0.0001999,2]
[313775758,1707713442917,-101.61797035,0.0001999,2]
[313775760,1707713442927,-500.0,0.0001999,2]
[313775762,1707713442937,-500.0,0.0001999,2]
[313775764,1707713442947,-855.36645446,0.00020263,2]
[313776428,1707714632072,-911.79184222,0.00018634,3]
[313776462,1707714638278,-258.05587891,0.00018633,2]
[313776463,1707714638288,-121.03959667,0.00018634,3]
[313776464,1707714638298,-652.00393196,0.00018635,2]
[313776465,1707714638307,-4922.2384664,0.00018649,2]
[313776466,1707714638316,-229.824851,0.00018836,2]
[313776467,1707714638326,-207.83678816,0.000189,2]
[313776468,1707714638336,-168.8292523,0.00019178,2]
[313776469,1707714638345,-2336.37143011,0.00020262,2]
[313776470,1707714638357,-3792.20229491,0.00020262,2]
[313776471,1707714638367,-2092.52534233,0.00020263,2]
[313776472,1707714638376,-300.0,0.00020263,2]
[313776473,1707714638385,-200.0,0.00020263,2]
[313776474,1707714638395,-500.0,0.00020263,2]
[313776476,1707714638404,-547.36,0.00020263,2]
[313776478,1707714638413,-500.0,0.00020263,2]
[313776479,1707714638422,-121.55401022,0.00020263,2]
[313776487,1707714641338,-378.44598978,0.00020263,2]
[313776488,1707714641347,-500.0,0.00020263,2]
[313776489,1707714641356,-865.29477115,0.00020263,2]
[313776490,1707714641368,-3585.15197365,0.00020263,2]
[313776491,1707714641380,-1208.1132552,0.00020263,2]
[313776492,1707714641389,-3105.48,0.00020263,2]
[313776493,1707714641398,-2587.66,0.00020263,2]
[313776494,1707714641408,-331.62943668,0.00020263,2]
[313777432,1707715846293,-252.26028481,0.00018854,2]
[313777602,1707717038550,-652.00393196,0.00016926,2]
[313777604,1707717038559,-1032.83143889,0.00016927,3]
[313777606,1707717038568,-258.05587891,0.00016928,2]
[313777608,1707717038578,-154.8915759,0.00016967,3]
[313777610,1707717038588,-20362.6705617,0.00017465,2]
[313777612,1707717038597,-200.0,0.00018337,2]
[313777615,1707717038606,-151.55215445,0.000188,2]
[313777617,1707717038615,-500.0,0.00018852,2]
[313777619,1707717038625,-1587.53818011,0.00018852,2]
[313777621,1707717038635,-324.84477214,0.00018852,2]
[313777623,1707717038644,-1500.0,0.00018853,3]
[313777625,1707717038654,-62880.4772385,0.00018854,2]
[313777628,1707717038665,-3875.03513486,0.00018854,2]
[313777953,1707717041725,-10207.76350593,0.00018854,2]
[313777955,1707717041737,-10013.33860647,0.00018854,2]
[313778118,1707717043529,-4502.83,0.00018854,2]
[313778120,1707717043542,-647.19209226,0.00018854,2]
[313778125,1707717043579,-2065.41099088,0.00018854,2]
[313778416,1707717046449,-1032.36645246,0.00018854,2]
[313779104,1707718238814,-154.8915759,0.00018708,2]
[313779106,1707718238824,-258.05587891,0.00018709,2]
[313779108,1707718238833,-652.00393196,0.00018709,2]
[313779110,1707718238842,-1032.83143889,0.0001871,3]
[313779112,1707718238851,-180.12363298,0.00018754,2]
[313779114,1707718238860,-295.73444606,0.00018852,2]
[313779116,1707718238869,-161.96738259,0.00018852,2]
[313779118,1707718238878,-207.29891208,0.00018852,2]
[313779120,1707718238887,-719.78343208,0.00018852,2]
[313779122,1707718238896,-83953.33130045,0.00018853,2]
[313779124,1707718238906,-7773.68141269,0.00018854,2]
[313779126,1707718238915,-150.0,0.000189,2]
[313779128,1707718238925,-180.12363298,0.00018972,2]
[313779130,1707718238934,-261.8011765,0.00019176,2]
[313779132,1707718238944,-155.6123292,0.00019176,2]
[313779134,1707718238953,-209.62418103,0.00019176,2]
[313779136,1707718238963,-1302.09516502,0.00019176,2]
[313779138,1707718238972,-1673.16368587,0.00019176,2]
[313779200,1707718241854,-139.22508946,0.00019176,2]
[313779202,1707718241863,-161.24539007,0.00019176,2]
[313779204,1707718241874,-288.76648638,0.00019176,2]
[313779206,1707718241883,-260.99042361,0.00019176,2]
[313779208,1707718241892,-213.42112146,0.00019176,2]
[313779210,1707718241902,-155.36802379,0.00019176,2]
[313779212,1707718241911,-500.0,0.00019178,2]
[313779214,1707718241920,-500.0,0.00019178,2]
[313779216,1707718241929,-242.74840916,0.00019178,2]
[313779218,1707718241938,-613.55,0.00019178,2]
[313779220,1707718241947,-500.0,0.00019178,2]
[313779222,1707718241956,-611.1,0.00019178,2]
[313779224,1707718241965,-597.24,0.00019178,2]
[313779227,1707718241975,-500.23414268,0.00019178,2]
[313779229,1707718241984,-286.23591298,0.00019178,2]
[313779312,1707718243657,-213.76408702,0.00019178,2]
[313779313,1707718243666,-500.0,0.00019178,2]
[313779314,1707718243676,-455.89791809,0.00019178,2]
[313779315,1707718243686,-185.07172042,0.00019178,2]
[313779316,1707718243695,-532.48,0.00019178,2]
[313779317,1707718243708,-582.57,0.00019178,2]
[313779319,1707718243831,-579.08869017,0.00019178,2]
[313779320,1707718243840,-500.0,0.00019178,2]
[313779322,1707718243849,-193.17243789,0.00019178,2]
[313779324,1707718243858,-307.35556093,0.00019178,2]
[313779325,1707718243870,-192.64443907,0.00019178,2]
[313779326,1707718243879,-500.0,0.00019178,2]
[313779327,1707718243889,-524.55,0.00019178,2]
[313779328,1707718243898,-436.20556093,0.00019178,2]
[313779329,1707718243911,-63.79443907,0.00019178,2]
[313779330,1707718243920,-538.62,0.00019178,2]
[313779331,1707718243929,-500.0,0.00019178,2]
[313779332,1707718243939,-792.0812449,0.00019178,2]
[313779333,1707718243960,-2497.6287551,0.00019178,2]
[313779334,1707718243970,-500.0,0.00019178,2]
[313779335,1707718243979,-500.0,0.00019178,2]
[313779336,1707718243989,-396.46842486,0.00019178,2]
[313779337,1707718244001,-103.53157514,0.00019178,2]
[313779338,1707718244010,-500.0,0.00019178,2]
[313779339,1707718244019,-161.23513212,0.00019178,2]
[313779368,1707718519844,21835.44587394,2.8e-05,10]
[313779369,1707718519876,13856.75171161,2.8e-05,10]
[313779370,1707718519906,2500.0,2.8e-05,10]
[313779371,1707718519932,9739.28447794,2.8e-05,10]
[313779372,1707718519960,50000.0,2.8e-05,10]
[313779373,1707718519989,22411.70451566,2.8e-05,10]
[313779833,1707719437967,-154.8915759,0.00018079,2]
[313779834,1707719437977,-258.05587891,0.0001808,2]
[313779835,1707719437986,-652.00393196,0.0001808,2]
[313779836,1707719437996,-1032.83143889,0.00018081,3]
[313779837,1707719438006,-1057.96199,0.00018205,2]
[313779838,1707719438016,-162.42134607,0.00018331,2]
[313779840,1707719438027,-150.0,0.000189,2]
[313779842,1707719438038,-3340.00769499,0.00018984,2]
[313779845,1707719438049,-154.112702,0.000191,2]
[313779846,1707719438063,-153.0,0.000191,2]
[313779847,1707719438073,-403.4297338,0.000191,2]
[313779848,1707719438085,-153.3863894,0.000191,2]
[313779849,1707719438095,-225.0579127,0.00019177,2]
[313779850,1707719438105,-2712.60308314,0.00019178,2]
[313779851,1707719438116,-200.0,0.00019178,2]
[313779852,1707719438126,-106.80084954,0.00019178,2]
[313780274,1707719618499,-150.0,0.00027981,120]
[313780276,1707719657662,-2453.0,0.00029,30]
[313780277,1707719657685,-3100.0,0.00029,30]
[313780278,1707719657709,-44447.0,0.000295,30]
[313780282,1707719714250,-67302.677034,0.000295,30]
[313780283,1707719714274,-1000.0,0.0003,30]
[313780284,1707719714296,-11697.322966,0.0003,30]
[313780391,1707720634142,-258.05587891,0.00018897,2]
[313780392,1707720634151,-309.20751776,0.00018898,2]
[313780395,1707720634161,-162.42134607,0.000189,2]
[313780397,1707720634170,-180.41644426,0.00019,2]
[313780399,1707720634181,-19.58355574,0.00019,2]
[313780400,1707720634190,-166.666666,0.00019178,2]
[313780401,1707720634200,-500.0,0.00019299,2]
[313780402,1707720634209,-539.81883984,0.00019403,2]
[313780403,1707720634218,-395.40010648,0.00019405,2]
[313780404,1707720634227,-289.8,0.00019405,2]
[313780405,1707720634239,-477.88083194,0.00019405,2]
[313780554,1707720644892,-22.11916806,0.00019405,2]
[313780556,1707720644903,-329.88083194,0.00019405,2]
[313780558,1707720644915,-170.11916806,0.00019405,2]
[313780560,1707720644924,-500.0,0.00019405,2]
[313780562,1707720644934,-500.0,0.00019405,2]
[313780564,1707720644944,-558.3,0.00019405,2]
[313780566,1707720644953,-500.0,0.00019405,2]
[313780568,1707720644963,-575.83860264,0.00019405,2]
[313780570,1707720644973,-516.18,0.00019405,2]
[313780572,1707720644983,-500.0,0.00019405,2]
[313780574,1707720644994,-318.80500562,0.00019405,2]
[313780697,1707720646032,-181.19499438,0.00019405,2]
[313780699,1707720646041,-500.0,0.00019451,2]
[313780701,1707720646051,-500.0,0.00019451,2]
[313780703,1707720646060,-174.96313982,0.00019579,2]
[313780705,1707720646068,-166.666666,0.00019627,2]
[313780707,1707720646078,-300.0,0.00019675,2]
[313780709,1707720646087,-1282.76679155,0.00019676,3]
[313780711,1707720646098,-500.0,0.00019677,2]
[313780713,1707720646108,-500.0,0.00019677,2]
[313780715,1707720646117,-500.0,0.00019677,2]
[313780717,1707720646126,-500.0,0.00019677,2]
[313780719,1707720646135,-500.0,0.00019677,2]
[313780721,1707720646144,-3152.64,0.00019677,2]
[313780723,1707720646154,-500.0,0.00019677,2]
[313780725,1707720646163,-502.69,0.00019677,2]
[313780727,1707720646172,-500.0,0.00019677,2]
[313780729,1707720646181,-3896.22433561,0.00019677,2]
[313780732,1707720646194,-538.61450309,0.00019677,2]
[313780734,1707720646205,-987.9511613,0.00019677,2]
[313780736,1707720646214,-500.0,0.00019677,2]
[313780738,1707720646223,-546.47,0.00019677,2]
[313780740,1707720646232,-500.0,0.00019677,2]